fUST/lending_fUST_20240424
["ID","MTS","AMOUNT","RATE_DAILY","PERIOD"]
[323388441,1713967843942,-1059.78881259,0.00013248,2]
[323388442,1713967843951,-154.95116331,0.00013248,2]
[323388443,1713967843960,-1422.11192019,0.00013248,2]
[323388444,1713967843969,-154.99980925,0.00013248,2]
[323388445,1713967844144,-564.51895848,0.00013248,2]
[323388446,1713967844154,-309.67484219,0.00013248,2]
[323388447,1713967844163,-169.0242405,0.00013248,2]
[323388448,1713967844172,-154.84515485,0.00013248,2]
[323388449,1713967844181,-154.94382346,0.00013248,2]
[323388450,1713967844191,-926.12337607,0.00013248,2]
[323388475,1713967860624,2610.28334509,0.00010944,10]
[323388476,1713967875193,27413.43891507,0.000252,59]
[323388477,1713967901656,4507.63024156,0.00025192,60]
[323388479,1713968037910,2032.0,0.000266,120]
[323388481,1713968709892,526.42938947,0.000111,2]
[323388482,1713968743894,596.92086252,0.000111,2]
[323388483,1713968790272,386.07208968,0.000111,2]
[323388484,1713968798403,363.73729717,0.000111,2]
[323388485,1713968798906,16092.92827153,0.000111,2]
[323388486,1713968812276,386.07208968,0.000111,2]
[323388487,1713968812444,363.73729717,0.000111,2]
[323388488,1713968814907,1262.78839496,0.000111,2]
[323388489,1713968832403,363.73729717,0.000111,2]
[323388490,1713968834283,385.89118056,0.000111,2]
[323388491,1713968852430,363.73729717,0.000111,2]
[323388492,1713968870422,363.73729717,0.000111,2]
[323388493,1713968888403,363.73729717,0.000111,2]
[323388494,1713968893345,406.90410425,0.000111,2]
[323388495,1713968904417,363.73729717,0.000111,2]
[323388496,1713968924429,246.73808592,0.000111,2]
[323388641,1713969038726,-169.27597088,0.00011101,2]
[323388643,1713969038739,-300.0,0.0001115,2]
[323388644,1713969038748,-836.6981579,0.00011151,2]
[323388647,1713969038761,-21218.29493339,0.00011151,2]
[323388652,1713969038802,-2845.00690871,0.00011151,2]
[323388654,1713969038811,-386.4747915,0.00011201,2]
[323388655,1713969038820,-196.7086001,0.00011271,2]
[323388657,1713969038829,-504.73598238,0.00011635,2]
[323388659,1713969038838,-613.8729902,0.00012144,2]
[323388662,1713969038847,-420.0,0.00012265,2]
[323388665,1713969038855,-6483.27636737,0.00012943,2]
[323388668,1713969038867,-992.56266001,0.00012943,2]
[323389029,1713969043946,-9818.25,0.00012943,2]
[323389036,1713969044008,-1659.4629265,0.00012943,2]
[323389038,1713969044021,-1804.323423,0.00012943,2]
[323389041,1713969044033,-3012.47132687,0.00012943,2]
[323389299,1713969046911,-3288.55,0.00012943,2]
[323393981,1713969133021,1000.0,0.00022,25]
[323394219,1713969907637,500.0,0.00025192,60]
[323394232,1713970015916,454.94,0.000266,120]
[323394235,1713970027696,682.4,0.000266,120]
[323394268,1713970039625,682.4,0.000266,120]
[323394270,1713970111233,935.34836433,0.000266,120]
[323394330,1713970231858,-329.68012038,0.00011468,2]
[323394332,1713970231868,-2588.14074866,0.00011468,2]
[323394334,1713970231877,-362.06078861,0.00011469,2]
[323394336,1713970231886,-300.0,0.0001147,2]
[323394338,1713970231895,-300.0,0.0001147,2]
[323394340,1713970231904,-7868.0386131,0.0001147,2]
[323394342,1713970231913,-24900.0,0.00011471,2]
[323394344,1713970231922,-1200.38162123,0.000119,2]
[323394346,1713970231931,-420.0,0.00012598,2]
[323394348,1713970231940,-420.0,0.00012617,2]
[323394350,1713970231949,-24959.65047605,0.00012839,2]
[323394590,1713970238009,-13022.0,0.00012839,2]
[323394597,1713970238069,-1916.43,0.00012839,2]
[323394600,1713970238080,-4545.91952395,0.00012839,2]
[323394602,1713970238089,-202.25072848,0.00012841,2]
[323394604,1713970238098,-2417.97536102,0.000129,2]
[323394606,1713970238107,-3914.0,0.0001292,2]
[323394607,1713970238116,-2623.48627296,0.00012937,2]
[323394609,1713970238125,-1620.29564358,0.00012937,2]
[323394611,1713970238134,-247.22010741,0.00012938,2]
[323394613,1713970238143,-5801.77357762,0.00012938,2]
[323394615,1713970238152,-1591.65939423,0.00012939,2]
[323394618,1713970238164,-9735.0,0.00012939,2]
[323394762,1713970240405,-3837.72257111,0.00012939,2]
[323394768,1713970240461,-319.68,0.00012939,2]
[323394771,1713970240474,-438.89924525,0.00012939,2]
[323395085,1713970243169,-6289.89231078,0.00012939,2]
[323395088,1713970243297,-8214.40119447,0.00012939,2]
[323395090,1713970243309,-78000.0,0.00012939,2]
[323395362,1713970246142,-119250.54202205,0.00012939,2]
[323395367,1713970246199,-93000.0,0.00012939,2]
[323397197,1713970266055,154.84515485,0.00010349,2]
[323400124,1713970320685,363.73729717,0.00010349,2]
[323400125,1713970329666,692.82303209,0.00010349,2]
[323400126,1713970330637,386.07208968,0.00010349,2]
[323400127,1713970336018,155.3876248,0.00010349,2]
[323400128,1713970338615,363.73729717,0.00010349,2]
[323400129,1713970348465,385.9514836,0.00010349,2]
[323400130,1713970353656,444.37079142,0.00010349,2]
[323400131,1713970354609,363.73729717,0.00010349,2]
[323400132,1713970359849,19187.75279309,0.00010349,2]
[323400134,1713970372632,363.47884236,0.00010349,2]
[323400135,1713970375855,8359.92060694,0.00010349,2]
[323400137,1713970483869,2572.26372439,0.00010349,2]
[323400138,1713970485092,1546.45332663,0.0002,120]
[323400139,1713970486890,312.89602281,0.00018,120]
[323400142,1713970791849,24900.0,0.0001099,2]
[323400143,1713970842494,17997.69315847,0.0001099,2]
[323400144,1713970846498,962.61,0.00011067,2]
[323400145,1713970856490,962.61,0.00011067,2]
[323400146,1713970865068,250.0,0.00010998,2]
[323400154,1713971105105,2588.14074866,0.000111,2]
[323400156,1713971146186,193.63179074,0.000111,2]
[323400157,1713971159902,7868.0386131,0.000111,2]
[323400158,1713971188973,6391.7344488,0.00010245,2]
[323400159,1713971225809,1081.0717094,0.00010245,2]
[323400162,1713971277872,24900.0,0.00010322,2]
[323400164,1713971348808,962.61,0.00010322,2]
[323400186,1713971432081,-548.57466,0.00011101,2]
[323400187,1713971432091,-472.01022916,0.00011108,2]
[323400188,1713971432100,-250.0,0.00011109,2]
[323400189,1713971432109,-300.0,0.00011232,2]
[323400190,1713971432119,-1211.741757,0.00011233,2]
[323400193,1713971432137,-386.01217285,0.00011233,2]
[323400317,1713971438158,-962.61,0.00011233,2]
[323400343,1713971438396,-1461.98728171,0.00011233,2]
[323400467,1713971440778,-2478.09096799,0.00011233,2]
[323402649,1713971462825,198.69225874,0.00010322,2]
[323402940,1713971465793,181.72050586,0.00010322,2]
[323402968,1713971466052,2556.5120492,0.00010322,2]
[323403741,1713971474279,298.8631893,0.00010349,2]
[323404635,1713971484697,386.01178664,0.00010322,2]
[323404924,1713971487791,192.02496784,0.00010322,2]
[323405131,1713971489942,692.70825887,0.00010322,2]
[323406213,1713971505892,692.70825887,0.00010322,2]
[323406214,1713971508637,386.07208968,0.00010322,2]
[323406217,1713971525890,176.44832058,0.00010322,2]
[323406218,1713971530612,385.9514836,0.00010322,2]
[323406219,1713971574606,232.36178465,0.00010322,2]
[323406220,1713971635099,596.92086252,0.00011007,2]
[323406221,1713971643710,596.92086252,0.00011007,2]
[323406222,1713971652249,596.92086252,0.00011007,2]
[323406223,1713971660711,768.14516553,0.00011006,2]
[323406224,1713971669053,768.14516553,0.00011006,2]
[323406225,1713971677965,768.14516553,0.00011006,2]
[323406226,1713971687467,1068.93109168,0.00011005,2]
[323406227,1713971696445,1068.93109168,0.00011005,2]
[323406228,1713971705139,1068.93109168,0.00011005,2]
[323406229,1713971714673,1068.93109168,0.00011005,2]
[323406230,1713971723283,768.14516553,0.00011004,2]
[323406231,1713971731860,768.14516553,0.00011004,2]
[323406232,1713971739973,596.92086252,0.00011003,2]
[323406233,1713971748880,472.01022916,0.00011002,2]
[323406234,1713971757214,472.01022916,0.00011002,2]
[323406235,1713971765635,472.01022916,0.00011002,2]
[323406236,1713971773995,472.01022916,0.00011002,2]
[323406237,1713971783825,768.14516553,0.00011001,2]
[323406238,1713971792557,768.14516553,0.00011001,2]
[323406239,1713971802251,981.68636421,0.00011,2]
[323406241,1713971810942,472.01022916,0.00010999,2]
[323406242,1713971819689,520.05301281,0.00010998,2]
[323406243,1713971827854,520.05301281,0.00010998,2]
[323406244,1713971833906,729.48680207,0.00011002,2]
[323406245,1713971851874,527.52452229,0.00010999,2]
[323406246,1713971885277,1394.68761216,0.000111,2]
[323406247,1713971885329,283.4494848,0.000111,2]
[323406248,1713971886364,154.84515485,0.000111,2]
[323406249,1713971888525,154.84515485,0.000111,2]
[323406250,1713971889247,203.87805929,0.000111,2]
[323406251,1713971891464,154.84515485,0.000111,2]
[323406252,1713971891533,154.84515485,0.000111,2]
[323406253,1713971893416,808.5884465,0.000111,2]
[323406254,1713971897882,329.68012038,0.000111,2]
[323406255,1713971898226,768.14516553,0.000111,2]
[323406256,1713971898622,173.25526101,0.000111,2]
[323406257,1713971904355,154.84515485,0.000111,2]
[323406258,1713971906612,24900.0,0.00010144,2]
[323406259,1713971912431,154.84515485,0.000111,2]
[323406260,1713971912496,154.84515485,0.000111,2]
[323406261,1713971914076,154.84515485,0.000111,2]
[323406262,1713971914991,154.84515485,0.000111,2]
[323406263,1713971916205,472.01022916,0.000111,2]
[323406264,1713971917496,977.94969331,0.000111,2]
[323406265,1713971918490,212.0994584,0.000111,2]
[323406266,1713971919177,362.06078861,0.00011099,2]
[323406267,1713971919267,193.63179074,0.000111,2]
[323406268,1713971919842,154.84515485,0.00011099,2]
[323406269,1713971919955,154.84515485,0.00011099,2]
[323406270,1713971920257,192.56243487,0.00011099,2]
[323406271,1713971920712,2453.40430644,0.00011099,2]
[323406272,1713971920841,596.92086252,0.00011099,2]
[323406273,1713971924684,308.54338713,0.000111,2]
[323406274,1713971924767,192.56243487,0.00011099,2]
[323406275,1713971925303,526.42938947,0.000111,2]
[323406276,1713971925369,623.86726037,0.000111,2]
[323406277,1713971925408,206.09782636,0.000111,2]
[323406278,1713971930344,154.84515485,0.00011098,2]
[323406279,1713971933084,2521.49989973,0.000111,2]
[323406283,1713972049226,1621.24,0.00011,2]
[323406286,1713972163647,168.9644791,0.00010113,2]
[323406289,1713972252197,4124.63,0.00025192,60]
[323406291,1713972339284,15915.682996,0.00010089,2]
[323406292,1713972344807,193.63179074,0.00010088,2]
[323406293,1713972408136,-154.84515485,0.00011049,2]
[323406294,1713972408157,-203.87805929,0.00011049,2]
[323406295,1713972408184,-154.84515485,0.00011049,2]
[323406296,1713972408212,-362.06078861,0.0001105,2]
[323406297,1713972408238,-49.47163452,0.0001105,2]
[323406298,1713972411200,513.56836899,0.00010939,2]
[323406299,1713972419362,1786.43835692,0.00010937,2]
[323406300,1713972422227,18313.15486392,0.00010088,2]
[323406301,1713972427654,408.93284854,0.00010936,2]
[323406302,1713972436746,773.07885168,0.00010935,2]
[323406303,1713972438521,23204.82670995,0.00010089,2]
[323406304,1713972438545,1695.17329005,0.00010089,2]
[323406305,1713972445709,676.47175936,0.00010934,2]
[323406306,1713972447523,157.81173308,0.00010945,2]
[323406307,1713972454032,329.68012038,0.00010932,2]
[323406308,1713972462087,329.68012038,0.00010932,2]
[323406309,1713972470545,309.6903097,0.00010931,2]
[323406310,1713972479705,3141.55186169,0.0001093,2]
[323406311,1713972489683,552.63682013,0.00010929,2]
[323406313,1713972581428,265.46820019,0.00011027,7]
[323406314,1713972583850,154.84515485,0.00010917,2]
[323406315,1713972592748,304.86222567,0.00010916,2]
[323406316,1713972592952,182.14504101,0.00010917,2]
[323406317,1713972600074,692.82303209,0.00010917,2]
[323406318,1713972614025,692.59348565,0.00010917,2]
[323406319,1713972617010,182.14504101,0.00010917,2]
[323406392,1713972632644,-154.84515485,0.00011019,2]
[323406394,1713972632655,-520.05301281,0.0001102,2]
[323406396,1713972632665,-154.84515485,0.0001102,2]
[323406398,1713972632674,-154.84515485,0.00011021,2]
[323406399,1713972632685,-283.4494848,0.00011022,2]
[323406401,1713972632696,-521.62660451,0.00011022,2]
[323406403,1713972632705,-154.84515485,0.00011023,2]
[323406405,1713972632715,-526.42938947,0.00011023,2]
[323406407,1713972632726,-474.86339455,0.00011023,2]
[323406408,1713972632735,-154.84515485,0.00011023,2]
[323406410,1713972632744,-623.86726037,0.00011023,2]
[323406412,1713972632755,-308.54338713,0.00011024,2]
[323406414,1713972632764,-207.92306846,0.00011024,2]
[323406416,1713972632780,-154.84515485,0.00011024,2]
[323406418,1713972632789,-408.93284854,0.00011024,2]
[323406420,1713972632800,-154.84515485,0.00011025,2]
[323406421,1713972632810,-564.5969546,0.00011025,2]
[323406423,1713972632819,-154.84515485,0.00011026,2]
[323406425,1713972632828,-329.68012038,0.00011026,2]
[323406427,1713972632837,-472.01022916,0.00011026,2]
[323406429,1713972632846,-1578.51528846,0.00011027,2]
[323406430,1713972632854,-300.0,0.00011027,2]
[323406432,1713972632863,-300.0,0.00011027,2]
[323406434,1713972632872,-549.6120096,0.00011028,2]
[323406436,1713972632882,-7868.0386131,0.00011028,2]
[323406438,1713972632891,-154.84515485,0.000111,2]
[323406440,1713972632900,-2471.80585963,0.00011101,2]
[323406441,1713972632909,-157.81173308,0.00011215,2]
[323406443,1713972632918,-157.81173308,0.00011486,2]
[323406445,1713972632928,-767.86268077,0.00011643,2]
[323406447,1713972632938,-157.81173308,0.00011756,2]
[323406448,1713972632947,-153.0,0.00011846,2]
[323406450,1713972632957,-203.87805929,0.00012024,2]
[323406452,1713972632966,-362.06078861,0.00012025,2]
[323406454,1713972632975,-157.81173308,0.00012026,2]
[323406456,1713972632985,-420.0,0.00012117,2]
[323406457,1713972632994,-420.0,0.0001213,2]
[323406459,1713972633004,-154.6736905,0.000122,2]
[323406461,1713972633014,-157.81173308,0.00012296,2]
[323406463,1713972633026,-179.784,0.00012427,2]
[323406465,1713972633036,-157.81173308,0.00012567,2]
[323406467,1713972633045,-153.0,0.000127,2]
[323406468,1713972633055,-153.0,0.000127,2]
[323406470,1713972633065,-153.0,0.000127,2]
[323406472,1713972633075,-157.81173308,0.00012837,2]
[323406474,1713972633084,-2222.43343282,0.000129,2]
[323406476,1713972633094,-259.26636976,0.00012937,2]
[323406478,1713972633103,-468.44380318,0.00012937,2]
[323406480,1713972633112,-2623.65375381,0.00012937,2]
[323406481,1713972633123,-216.31330408,0.00012937,2]
[323406483,1713972633133,-508.47806633,0.00012937,2]
[323406485,1713972633143,-882.92224013,0.00012937,2]
[323406487,1713972633152,-1490.03151355,0.00012937,2]
[323406489,1713972633162,-155.99884431,0.00012937,2]
[323406491,1713972633170,-1301.00002751,0.00012937,2]
[323406493,1713972633180,-157.32695344,0.00012937,2]
[323406495,1713972633189,-268.97000585,0.00012937,2]
[323406497,1713972633198,-456.1791498,0.00012937,2]
[323406498,1713972633210,-155.32689021,0.00012937,2]
[323406500,1713972633219,-2073.28306312,0.00012937,2]
[323406502,1713972633231,-266.45086033,0.00012937,2]
[323406504,1713972633239,-285.12994024,0.00012937,2]
[323406506,1713972633248,-155.33780646,0.00012937,2]
[323406508,1713972633260,-312.50305003,0.00012937,2]
[323406510,1713972633272,-336.93368223,0.00012937,2]
[323406511,1713972633281,-181.25029837,0.00012937,2]
[323406513,1713972633290,-309.46191478,0.00012937,2]
[323406515,1713972633301,-157.76351589,0.00012937,2]
[323406517,1713972633309,-267.70991316,0.00012937,2]
[323406519,1713972633319,-1293.24324257,0.00012938,2]
[323406521,1713972633328,-1090.52068603,0.00013039,2]
[323406523,1713972633337,-162.02240911,0.00013039,2]
[323406525,1713972633345,-1056.82567173,0.00013041,2]
[323406526,1713972633356,-539.84959505,0.00013041,2]
[323406528,1713972633365,-153.43131253,0.00013115,2]
[323406530,1713972633375,-1201.98039691,0.00013143,2]
[323406532,1713972633384,-587.0,0.00013315,2]
[323406534,1713972633393,-587.0,0.00013343,2]
[323406535,1713972633401,-1281.59934921,0.00013598,2]
[323406537,1713972633410,-1281.59934921,0.00013674,2]
[323406538,1713972633419,-265.46820019,0.00013696,7]
[323406540,1713972633429,-27081.71825003,0.00013697,2]
[323406546,1713972633515,-250.0,0.00013697,2]
[323406571,1713972633813,-2911.45947578,0.00013697,2]
[323406595,1713972634140,236.74437458,0.00010917,2]
[323406948,1713972638360,-549.6120096,0.00011019,2]
[323406949,1713972638369,-25913.90494839,0.00013697,2]
[323406958,1713972638436,-353881.560372,0.00013697,2]
[323406960,1713972638446,-17967.86,0.00013698,2]
[323406962,1713972638455,-1161.86089445,0.00013699,2]
[323406964,1713972638467,-615.32971859,0.00013699,2]
[323407418,1713972643533,-517.23892076,0.00013698,2]
[323407420,1713972643543,-943.64924796,0.00013699,2]
[323407422,1713972643552,-569.668909,0.00013749,2]
[323407567,1713972646419,-161.1878028,0.00013698,2]
[323407569,1713972646429,-183.71831403,0.00013698,2]
[323407571,1713972646438,-154.84515485,0.00013748,2]
[323407573,1713972646448,-315.41027641,0.00013748,2]
[323407575,1713972646457,-308.54338713,0.00013748,2]
[323407577,1713972646467,-711.93044021,0.00013749,2]
[323407579,1713972646476,-1301.60284295,0.000138,2]
[323407582,1713972646485,-1281.59934921,0.00013825,2]
[323407584,1713972646494,-2222.43343279,0.0001388,2]
[323407587,1713972646504,-1281.59934921,0.000139,2]
[323407589,1713972646513,-17967.86,0.00013972,2]
[323407592,1713972646522,-927.87368973,0.00014,2]
[323407595,1713972646533,-638.01106262,0.00014,2]
[323407597,1713972646543,-418.501,0.00014043,2]
[323407599,1713972646552,-295.0,0.00014153,2]
[323407601,1713972646561,-13733.59369249,0.00014246,2]
[323411685,1713972856969,265.46820019,0.00012398,7]
[323411688,1713973150516,9285.2019236,0.00010179,2]
[323411689,1713973162422,7706.0,0.00011,2]
[323411690,1713973164369,154.84515485,0.0001,2]
[323411691,1713973173470,26049.64698822,0.00011009,2]
[323411692,1713973238839,1202.39645166,0.00011,2]
[323411693,1713973239020,468.51779384,0.00011,2]
[323411694,1713973240874,564.5969546,0.00011,2]
[323411695,1713973242859,362.06078861,0.00010999,2]
[323411696,1713973248710,883.9212987,0.00010999,2]
[323411697,1713973253663,5802.65810495,0.00010999,2]
[323411698,1713973260754,300.0,0.00010999,2]
[323411699,1713973260841,520.05301281,0.00010999,2]
[323411700,1713973261913,408.93284854,0.00010999,2]
[323411701,1713973262017,729.48680207,0.00010999,2]
[323411702,1713973262275,154.84515485,0.00010999,2]
[323411703,1713973262306,154.84515485,0.00010999,2]
[323411704,1713973265044,157.79100369,0.00010999,2]
[323411705,1713973265357,300.0,0.00010999,2]
[323411706,1713973265683,283.4494848,0.00010999,2]
[323411707,1713973266321,207.92306846,0.00010999,2]
[323411708,1713973266588,235.6213964,0.00010999,2]
[323411709,1713973274039,7868.0386131,0.00010999,2]
[323411710,1713973275915,472.01022916,0.00010999,2]
[323411711,1713973276011,495.66951206,0.00010999,2]
[323411712,1713973276502,154.84515485,0.00010999,2]
[323411713,1713973277092,154.84515485,0.00010999,2]
[323411714,1713973277796,1878.39217822,0.00010999,2]
[323411715,1713973279379,549.6120096,0.00010999,2]
[323411716,1713973281634,1311.95535224,0.00010999,2]
[323411717,1713973283931,154.84515485,0.00010999,2]
[323411718,1713973286931,308.54338713,0.00010999,2]
[323411719,1713973287149,154.84515485,0.00010999,2]
[323411720,1713973287639,1510.1626914,0.00010027,2]
[323411722,1713973288265,1578.51528846,0.00010999,2]
[323411723,1713973292985,154.84515485,0.00010999,2]
[323411724,1713973296813,1394.68761216,0.00010999,2]
[323411725,1713973302342,1620.53461599,0.00010999,2]
[323411726,1713973305397,564.5969546,0.00010999,2]
[323411727,1713973309432,6432.92429137,0.0001091,2]
[323411728,1713973324676,300.0,0.00010999,2]
[323411729,1713973335341,207.92306846,0.00010999,2]
[323411730,1713973336172,5802.65810495,0.00010999,2]
[323411731,1713973344441,408.93284854,0.00010999,2]
[323411732,1713973346888,1057.20199727,0.00010999,2]
[323411733,1713973346948,204964.24864462,0.00010999,2]
[323411734,1713973380736,300.0,0.00010995,2]
[323411735,1713973383260,300.0,0.00010995,2]
[323411736,1713973396743,154.84515485,0.00010994,2]
[323411737,1713973405102,7868.0386131,0.00010994,2]
[323411738,1713973405626,187.31617372,0.00010994,2]
[323411739,1713973411854,520.05301281,0.00010994,2]
[323411740,1713973412644,1311.95535224,0.00010994,2]
[323411741,1713973414450,549.6120096,0.00010994,2]
[323411742,1713973416860,173.25526101,0.00010994,2]
[323411743,1713973417010,154.84515485,0.00010994,2]
[323411744,1713973417741,521.62660451,0.00010994,2]
[323411745,1713973419637,187.86995397,0.00010994,2]
[323411746,1713973420582,1394.68761216,0.00010994,2]
[323411747,1713973424673,539.92860326,0.00010994,2]
[323411748,1713973424826,1878.39217822,0.00010994,2]
[323411749,1713973425418,1890.36328834,0.00010994,2]
[323411750,1713973427844,198.39999629,0.00010994,2]
[323411751,1713973428645,1029.729213,0.00010994,2]
[323411752,1713973429374,281.26116534,0.00010994,2]
[323411753,1713973430408,671.82850283,0.00010994,2]
[323411754,1713973433303,1578.51528846,0.00010994,2]
[323411755,1713973434982,154.84515485,0.00010994,2]
[323411756,1713973436653,316.16870294,0.00010994,2]
[323411757,1713973437741,521.62660451,0.00010994,2]
[323411758,1713973440652,300.0,0.00010994,2]
[323411759,1713973440682,539.92860326,0.00010994,2]
[323411760,1713973442814,300.0,0.00010994,2]
[323411761,1713973443419,1562.55503189,0.00010994,2]
[323411762,1713973445459,1578.51528846,0.00010994,2]
[323411763,1713973446818,1423.31852368,0.00010994,2]
[323411764,1713973452964,308.20482298,0.00010994,2]
[323411765,1713973453736,521.62660451,0.00010994,2]
[323411766,1713973460679,184.57714591,0.00010994,2]
[323411767,1713973465296,1578.51528846,0.00010994,2]
[323411768,1713973469982,410038.6430462,0.00010994,2]
[323411769,1713973472415,385.11378372,0.00010994,2]
[323411770,1713973480451,5316.62816512,0.00010895,2]
[323411771,1713973483979,596.92086252,0.00010994,2]
[323411772,1713973491505,623.86726037,0.00010994,2]
[323411773,1713973500726,300.0,0.00010994,2]
[323411774,1713973501731,300.0,0.00010994,2]
[323411775,1713973516345,809.49782456,0.00010885,2]
[323411776,1713973520783,324.49452667,0.00010994,2]
[323411777,1713973528968,386.07208968,0.00010994,2]
[323411778,1713973542034,673.42380373,0.00010885,2]
[323411779,1713973544890,385.81406308,0.00010885,2]
[323411780,1713973546610,211.72809498,0.00010895,2]
[323411782,1713973554919,154.84515485,0.00010885,2]
[323411783,1713973555447,154.84515485,0.00010994,2]
[323411784,1713973558970,1247.3782967,0.00010102,2]
[323411785,1713973559161,162.04590632,0.00010994,2]
[323411786,1713973560915,24900.0,0.00010022,2]
[323411787,1713973563471,300.0,0.00010994,2]
[323411789,1713973568889,155.13653526,0.00010885,2]
[323411790,1713973580105,206.09782636,0.00010994,2]
[323411791,1713973594530,808.5884465,0.00010994,2]
[323411792,1713973596991,2588.14074866,0.00010994,2]
[323411793,1713973600758,283.4494848,0.00010994,2]
[323411794,1713973602529,154.84515485,0.00010994,2]
[323411795,1713973604950,308.54338713,0.00010994,2]
[323411796,1713973605225,5802.65810495,0.00010994,2]
[323411797,1713973605665,235.6213964,0.00010994,2]
[323411798,1713973606064,157.79100369,0.00010994,2]
[323411799,1713973607067,410038.6430462,0.00010994,2]
[323411800,1713973608238,154.84515485,0.00010993,2]
[323411801,1713973611019,408.93284854,0.00010994,2]
[323411802,1713973613880,1620.53461599,0.00010994,2]
[323411803,1713973614738,284.7948903,0.00010994,2]
[323411804,1713973620757,300.0,0.00010994,2]
[323411805,1713973622001,300.0,0.00010994,2]
[323411806,1713973629178,212.0994584,0.00010994,2]
[323411807,1713973646505,623.86726037,0.00010994,2]
[323411809,1713973702469,4015.3084445,0.00010082,2]
[323411811,1713973720345,1000.0,0.00022,26]
[323411815,1713973745684,300.0,0.00010994,2]
[323411816,1713973750895,1620.53461599,0.00010994,2]
[323411817,1713973759580,1000.0,0.00022,27]
[323411818,1713973772153,-154.84515485,0.00010995,2]
[323411819,1713973772175,-415.49694551,0.00010997,2]
[323411820,1713973772194,-208.48934142,0.00010999,2]
[323411821,1713973772215,-5511.060869,0.00011,2]
[323411826,1713973789644,1000.0,0.00022,28]
[323411827,1713973792566,8558.95820917,0.00025192,60]
[323411908,1713973833123,-495.36367476,0.00010999,2]
[323411909,1713973833132,-300.0,0.00011,2]
[323411910,1713973833142,-300.0,0.00011,2]
[323411911,1713973833152,-2356.9777441,0.00011,2]
[323411912,1713973833162,-1336.76748659,0.00011001,2]
[323411913,1713973833171,-471.32006796,0.00011001,2]
[323411914,1713973833181,-355.04038315,0.00011001,2]
[323411915,1713973833190,-882.95405966,0.00011001,2]
[323411916,1713973833199,-154.84515485,0.00011001,2]
[323411917,1713973833208,-155.09738902,0.00011001,2]
[323411918,1713973833217,-208.98984534,0.00011001,2]
[323411919,1713973833226,-474.67800663,0.00011001,2]
[323411920,1713973833236,-155.33131911,0.00011001,2]
[323411921,1713973833246,-187.02690375,0.00011006,2]
[323411922,1713973833256,-197.15387992,0.00011007,2]
[323411923,1713973833266,-208.55759306,0.00011007,2]
[323411924,1713973833277,-736.12184182,0.00011007,2]
[323411925,1713973833288,-212.34070079,0.00011008,2]
[323411926,1713973833298,-59169.7357574,0.00011008,2]
[323411927,1713973833308,-85111.18805129,0.00011009,2]
[323411943,1713973838490,-32375.04423839,0.00011009,2]
[323411950,1713973838557,-292552.41075652,0.00011009,2]
[323411952,1713973838566,-14626.37781058,0.0001101,2]
[323411954,1713973838576,-211.72809482,0.00011037,2]
[323411956,1713973838585,-8517.77010601,0.00011096,2]
[323411958,1713973838594,-193.60170872,0.00011096,2]
[323411960,1713973838604,-199.63055947,0.00011096,2]
[323411961,1713973838613,-309.67484219,0.00011096,2]
[323411964,1713973838626,-154.96394862,0.00011097,2]
[323411967,1713973838635,-154.9025669,0.00011097,2]
[323411969,1713973838643,-155.0252521,0.00011097,2]
[323411971,1713973838653,-154.93451573,0.00011097,2]
[323411973,1713973838662,-154.89846529,0.00011097,2]
[323411974,1713973838671,-155.65870881,0.00011097,2]
[323411976,1713973838680,-258.24029722,0.00011097,2]
[323411978,1713973838690,-154.92306399,0.00011097,2]
[323411979,1713973838699,-154.92930371,0.00011097,2]
[323411980,1713973838709,-301.07832754,0.00011097,2]
[323411981,1713973838718,-309.67484219,0.00011097,2]